bitfinex/quotes_ETHUSD_20240910
["timestamp","ask_amount","ask_price","bid_price","bid_amount"]
[1725972776356,0.32415124,2356.3,2355.6,2.2694]
[1725972777061,9.7822,2356.5,2355.6,2.2694]
[1725972777264,9.7822,2356.5,2355.7,0.55]
[1725972780454,0.79873789,2356.4,2355.7,0.55]
[1725972780844,7.4,2356.5,2355.8,2.355]
[1725972781168,7.4,2356.5,2356.0,2.355]
[1725972781376,7.4,2356.5,2356.1,0.55]
[1725972782179,0.88864422,2356.6,2356.1,0.55]
[1725972782376,0.88864422,2356.7,2356.2,2.4655]
[1725972782681,0.88864422,2356.8,2356.3,0.55]
[1725972782979,2.88807731,2356.8,2356.3,0.55]
[1725972783181,2.8881284,2356.7,2356.3,0.55]
[1725972783385,0.88864422,2356.7,2356.3,0.55]
[1725972783586,0.88864422,2356.6,2356.3,0.55]
[1725972784080,0.88864422,2356.7,2356.3,0.55]
[1725972784289,0.88864422,2356.7,2356.3,0.85155]
[1725972784490,0.88864422,2356.9,2356.4,2.2949]
[1725972784657,0.88864422,2356.5,2356.2,2.2949]
[1725972784983,1.11080528,2356.5,2356.2,2.2949]
[1725972785347,1.11080528,2356.5,2355.5,2.3777]
[1725972785670,0.88864422,2356.2,2355.5,2.3777]
[1725972786049,0.88864422,2356.3,2355.7,2.2519]
[1725972786604,0.88864422,2356.4,2355.9,3.24151241]
[1725972786887,0.88864422,2356.6,2356.0,2.3367723]
[1725972787083,0.88864422,2356.6,2356.1,2.80972847]
[1725972787084,1.68927118,2356.6,2356.1,2.80972847]
[1725972787387,0.88864422,2356.6,2356.3,2.2884]
[1725972787593,0.88864422,2356.6,2356.4,0.55]
[1725972787594,0.88864422,2356.5,2356.4,0.55]
[1725972787786,0.80065057,2356.5,2356.4,0.55]
[1725972788371,0.88864422,2356.6,2356.4,0.55]
[1725972788570,1.68972477,2356.5,2356.4,0.55]
[1725972788770,0.88864422,2356.7,2356.4,3.83384]
[1725972788990,0.80147273,2356.6,2356.4,3.55]
[1725972789367,1.69011695,2356.6,2356.4,3.55]
[1725972789665,0.88864422,2356.6,2356.4,3.55]
[1725972790159,0.88864422,2356.8,2356.5,2.3905]
[1725972790364,0.80173012,2356.7,2356.5,2.3905]
[1725972790564,1.69037434,2356.7,2356.6,0.55]
[1725972790991,0.88864422,2356.7,2356.6,0.55]
[1725972791190,3.76017796,2356.7,2356.5,2.3905]
[1725972791393,2.89359635,2356.6,2356.5,2.3905]
[1725972791597,0.80173012,2356.6,2356.5,2.9405]
[1725972791796,0.88900492,2356.7,2356.5,2.9405]
[1725972792101,2.09226754,2356.7,2356.6,0.55]
[1725972792262,2.8944324,2356.7,2356.6,0.55]
[1725972792644,1.69116978,2356.7,2356.6,0.55]
[1725972792765,2.8944324,2356.7,2356.6,0.55]
[1725972794592,2.00542748,2356.7,2356.6,0.55]
[1725972794793,3.33839381,2356.7,2356.6,0.55]
[1725972795160,4.50530891,2356.7,2356.3,3.43572124]
[1725972795365,0.88994756,2356.5,2356.3,3.43572124]
[1725972795586,2.89624806,2356.4,2356.3,3.43572124]
[1725972795787,2.89624806,2356.4,2356.3,6.43572124]
[1725972795788,0.80216486,2356.4,2356.3,6.43572124]
[1725972796215,2.89624402,2356.4,2356.3,6.43572124]
[1725972796431,0.80216486,2356.4,2356.3,5.3733]
[1725972796589,0.80216486,2356.4,2356.3,2.3733]
[1725972797435,0.80216486,2356.4,2356.3,2.9233]
[1725972797718,0.80216486,2356.4,2356.3,5.9233]
[1725972797921,1.69211242,2356.4,2356.3,5.9233]
[1725972798224,2.8962919,2356.4,2356.3,0.55]
[1725972798399,2.8962919,2356.4,2356.1,0.55]
[1725972798594,0.80216486,2356.3,2356.1,0.55]
[1725972798930,0.80216486,2356.3,2355.6,2.3971]
[1725972798931,2.89700832,2356.2,2355.6,2.3971]
[1725972799128,0.88994756,2356.2,2355.8,2.3971]
[1725972799427,0.88994756,2356.3,2355.9,1.06261935]
[1725972799592,0.80281495,2356.2,2355.9,1.06261935]
[1725972799795,0.88994756,2356.2,2355.8,2.3971]
[1725972800236,0.80287,2356.1,2355.9,0.55]
[1725972800393,0.30277389,2356.1,2355.9,0.55]
[1725972800721,0.30277389,2356.1,2355.5,2.34269583]
[1725972800722,2.89721228,2356.0,2355.5,2.34269583]
[1725972800930,0.80290589,2355.9,2355.5,2.34269583]
[1725972801219,0.88994756,2356.0,2355.5,2.34269583]
[1725972801386,0.80289371,2355.9,2355.5,2.34269583]
[1725972801584,0.88994756,2356.0,2355.5,2.2578]
[1725972801786,0.88994756,2355.8,2355.3,7.48]
[1725972801990,2.89730569,2355.7,2355.3,2.3159]
[1725972802289,2.89730569,2355.6,2355.3,2.3159]
[1725972802488,0.80269877,2355.5,2355.3,2.3159]
[1725972802715,0.88994756,2355.6,2355.3,2.3159]
[1725972802901,0.80269056,2355.5,2355.3,2.3159]
[1725972803112,0.88994756,2355.6,2355.3,2.3159]
[1725972803626,2.09364443,2355.6,2355.3,2.3159]
[1725972803934,1.33492135,2355.7,2355.3,2.54749]
[1725972803935,0.88994756,2355.7,2355.3,2.54749]
[1725972804439,0.88994756,2355.7,2355.4,0.55]
[1725972805296,0.8022966,2355.6,2355.4,0.55]
[1725972805498,0.88994756,2355.7,2355.4,0.55]
[1725972805719,0.80227203,2355.6,2355.4,0.55]
[1725972805945,0.88994756,2355.7,2355.4,0.55]
[1725972806499,1.69209199,2355.7,2355.4,0.55]
[1725972806727,0.88994756,2355.8,2355.4,0.55]
[1725972806923,0.80212156,2355.7,2355.4,0.55]
[1725972807124,2.09315461,2355.7,2355.4,0.55]
[1725972807341,0.80200203,2355.6,2355.4,0.55]
[1725972807494,1.69194959,2355.6,2355.2,0.55]
[1725972807845,2.89501876,2355.5,2355.2,0.55]
[1725972807994,2.89510962,2355.4,2355.2,0.55]
[1725972808194,0.88994756,2355.4,2355.0,0.1192607]
[1725972808399,1.69177884,2355.3,2355.0,0.1192607]
[1725972808725,1.33492135,2355.5,2355.0,0.1192607]
[1725972808726,0.88994756,2355.4,2355.0,0.1192607]
[1725972808927,0.80184565,2355.3,2355.0,0.1192607]
[1725972809106,0.88994756,2355.4,2355.0,0.1192607]
[1725972809503,0.88994756,2355.5,2355.0,0.1192607]
[1725972809804,2.89366517,2355.4,2355.0,0.1192607]
[1725972810035,0.88994756,2355.4,2355.0,0.1192607]
[1725972810339,0.88994756,2355.4,2355.1,0.55]
[1725972810340,1.69150771,2355.4,2355.1,0.55]
[1725972810538,2.34558421,2355.4,2355.1,0.55]
[1725972810747,1.54402406,2355.4,2355.1,0.55]
[1725972810946,4.57643376,2355.2,2355.0,0.1192607]
[1725972811113,2.89205061,2355.1,2355.0,0.1192607]
[1725972811300,3.81662789,2355.1,2355.0,0.1192607]
[1725972811523,3.81656558,2355.1,2355.0,0.1192607]
[1725972812064,3.81664315,2355.1,2355.0,0.1192607]
[1725972812222,6.21018891,2355.4,2355.0,0.1192607]
[1725972812223,2.22316396,2355.4,2355.0,0.1192607]
[1725972812422,0.80065207,2355.3,2355.0,0.1192607]
[1725972812664,0.88824261,2355.4,2355.0,0.1192607]
[1725972813336,2.08884528,2355.4,2355.1,0.55]
[1725972813662,0.88824261,2355.4,2355.1,0.55]
[1725972814271,2.88873566,2355.4,2355.1,0.55]
[1725972814429,0.88824261,2355.5,2355.1,0.55]
[1725972814624,4.10893716,2355.5,2355.1,0.55]
[1725972814820,0.80015671,2355.4,2355.1,0.55]
[1725972815047,2.10854554,2355.5,2355.1,0.55]
[1725972815365,0.80000606,2355.4,2355.1,0.55]
[1725972815655,2.10854554,2355.5,2355.1,0.55]
[1725972815816,0.80000099,2355.4,2355.1,0.55]
[1725972816016,1.60196973,2355.4,2355.1,0.55]
[1725972816215,0.80196874,2355.4,2355.1,0.55]
[1725972817270,0.88824261,2355.6,2355.1,0.55]
[1725972817478,3.20284261,2355.7,2355.1,0.55]
[1725972817629,0.80084294,2355.6,2355.1,0.55]
[1725972818329,2.89024002,2355.6,2355.1,0.55]
[1725972818635,0.97812738,2355.6,2355.1,0.55]
[1725972820869,0.88824261,2355.7,2355.2,2.54911785]
[1725972821041,8.28824261,2356.1,2355.4,2.4642]
[1725972821244,8.28824261,2356.1,2355.5,0.79642]
[1725972821245,0.80042547,2356.0,2355.5,0.79642]
[1725972821566,7.4,2356.1,2355.5,0.79642]
[1725972821941,8.5958164,2356.1,2355.5,0.55]
[1725972822147,12.72557142,2356.1,2355.5,0.55]
[1725972822344,2.2658,2356.0,2355.5,0.55]
[1725972822540,2.2658,2356.0,2355.4,0.55]
[1725972822741,1.49913714,2355.9,2355.3,0.55]
[1725972823043,1.49913714,2355.9,2355.2,2.4889]
[1725972823246,2.2658,2356.0,2355.3,0.24889]
[1725972823568,9.48405901,2356.1,2355.3,0.24889]
[1725972823769,12.72557142,2356.1,2355.3,0.24889]
[1725972824067,0.80033636,2356.0,2355.4,0.55]
[1725972824244,2.88910204,2356.0,2355.3,0.55]
[1725972824439,1.63432552,2356.0,2355.3,0.55]
[1725972824832,0.74608291,2356.0,2355.3,0.55]
[1725972825570,1.54635273,2356.0,2355.3,0.55]
[1725972825862,0.74608291,2356.0,2355.3,0.55]
[1725972826276,3.63449809,2356.0,2355.3,0.55]
[1725972826474,0.60716543,2355.9,2355.3,0.55]
[1725972826680,7.23512045,2355.9,2355.3,0.55]
[1725972827282,1.49540804,2355.9,2355.3,0.55]
[1725972827487,0.88824261,2356.0,2355.3,0.55]
[1725972827780,2.88834092,2356.0,2355.3,0.55]
[1725972827950,0.88824261,2356.0,2355.3,0.55]
[1725972828160,2.88833506,2356.0,2355.3,0.55]
[1725972828347,0.86605852,2355.9,2355.3,0.55]
[1725972828542,2.3999,2355.8,2355.0,5.8178764]
[1725972828780,4.99581354,2355.9,2355.0,5.3902607]
[1725972828978,1.75430113,2355.9,2355.2,2.271]
[1725972829451,0.80011965,2355.8,2355.2,2.271]
[1725972829790,1.18905386,2355.8,2355.2,2.271]
[1725972830003,0.38893421,2355.8,2355.3,0.55]
[1725972832939,0.88824261,2355.9,2355.3,0.55]
[1725972833145,0.88824261,2356.1,2355.4,2.9023224]
[1725972833379,1.33492135,2356.2,2355.6,2.4746]
[1725972833380,0.88824261,2356.2,2355.6,2.4746]
[1725972833581,0.800136,2356.2,2355.7,0.89523224]
[1725972833783,0.88824261,2356.3,2355.7,0.89523224]
[1725972834245,0.88824261,2356.4,2355.8,2.3445]
[1725972834447,2.88845851,2356.4,2355.9,0.55]
[1725972834672,0.80008047,2356.3,2355.9,0.55]
[1725972835407,0.88824261,2356.4,2356.0,2.3196]
[1725972835541,8.28824261,2356.5,2356.0,2.3196]
[1725972835745,9.56101239,2356.5,2356.0,2.3196]
[1725972836182,2.88920878,2356.4,2356.0,2.3196]
[1725972836353,0.88824261,2356.4,2356.0,2.3196]
[1725972836551,2.88924072,2356.4,2356.0,2.3196]
[1725972836852,0.88824261,2356.4,2356.0,2.3196]
[1725972837073,2.88926186,2356.4,2356.0,2.3196]
[1725972837379,0.8004077,2356.3,2356.0,2.3196]
[1725972837583,0.88824261,2356.4,2356.1,0.55]
[1725972837911,8.73492135,2356.5,2356.1,0.89196]
[1725972837912,0.88824261,2356.5,2356.1,0.89196]
[1725972838045,1.68879505,2356.5,2356.2,2.4871]
[1725972838245,0.88824261,2356.6,2356.3,0.55]
[1725972838444,0.88824261,2356.6,2356.2,2.4871]
[1725972838445,1.68895889,2356.6,2356.2,2.4871]
[1725972838675,0.2223164,2356.5,2356.2,2.4871]
[1725972838888,0.2223164,2356.5,2355.8,4.09156553]
[1725972839087,0.2223164,2356.5,2355.9,2.8159]
[1725972839294,1.11055901,2356.5,2355.9,2.8159]
[1725972839458,0.80094712,2356.4,2355.9,2.8159]
[1725972840155,0.88824261,2356.5,2355.9,3.39749]
[1725972840571,1.68941823,2356.5,2355.9,3.39749]
[1725972840747,0.80115758,2356.4,2355.9,2.8159]
[1725972840943,0.88824261,2356.5,2355.9,2.8159]
[1725972841145,2.89144838,2356.4,2355.9,2.8159]
[1725972841392,1.31087958,2356.4,2355.9,2.8159]
[1725972841630,0.88824261,2356.2,2355.9,0.55]
[1725972841793,0.88824261,2356.3,2355.8,0.55]
[1725972842114,0.88824261,2356.3,2355.8,0.63489245]
[1725972842287,2.89203636,2356.3,2355.9,2.3461]
[1725972842488,0.88824261,2356.3,2356.0,0.55]
[1725972843086,2.09090359,2356.3,2356.0,0.55]
[1725972843290,0.88824261,2356.3,2356.0,0.55]
[1725972844133,2.89298433,2356.3,2356.0,0.55]
[1725972844303,0.80177509,2356.2,2356.0,0.55]
[1725972844507,0.88824261,2356.3,2356.0,0.55]
[1725972844809,0.88824261,2356.5,2356.2,2.2935]
[1725972845018,0.88824261,2356.6,2356.4,2.2935]
[1725972845263,0.88824261,2356.8,2356.5,3.13633747]
[1725972845520,3.1122098,2356.9,2356.6,2.2935]
[1725972845521,0.88824261,2356.9,2356.6,2.2935]
[1725972845703,0.88824261,2357.0,2356.7,0.55]
[1725972845926,1.33492135,2357.1,2356.9,2.2935]
[1725972845927,0.88824261,2357.1,2356.9,2.2935]
[1725972846106,0.88824261,2357.1,2357.0,0.55]
[1725972846440,0.80145761,2357.1,2357.0,0.55]
[1725972846734,0.80109804,2357.1,2357.0,0.55]
[1725972846888,1.19066881,2357.1,2356.7,2.3233]
[1725972847093,2.89111443,2357.0,2356.8,0.55]
[1725972847400,0.88824261,2357.0,2356.7,2.3233]
[1725972847606,1.28828785,2357.0,2356.4,2.3357]
[1725972847837,0.88824261,2356.9,2356.5,0.55]
[1725972848130,1.85286731,2356.9,2356.5,0.55]
[1725972848340,0.80093241,2356.8,2356.4,2.3357]
[1725972848635,2.89218017,2356.8,2356.4,2.3357]
[1725972849650,1.85286731,2356.9,2356.4,2.3357]
[1725972849851,0.80308912,2356.8,2356.4,2.3357]
[1725972850034,0.88824261,2356.7,2356.5,0.55]
[1725972850351,2.89605978,2356.7,2356.1,2.3968]
[1725972850549,1.81400106,2356.7,2356.2,0.55]
[1725972851061,2.89608188,2356.6,2356.1,2.3968]
[1725972851347,0.51567617,2356.5,2356.1,2.3968]
[1725972851549,0.51567617,2356.5,2355.7,2.2759]
[1725972852118,0.88824261,2356.6,2355.8,0.55]
[1725972852317,0.88824261,2356.6,2355.8,3.55]
[1725972852318,2.89582198,2356.6,2355.8,3.55]
[1725972852623,0.88824261,2356.6,2355.8,3.55]
[1725972852828,2.89583508,2356.6,2355.8,3.55]
[1725972853062,2.18860252,2356.6,2355.8,4.44171473]
[1725972856052,0.80298269,2356.5,2355.8,3.55]
[1725972856254,2.18860252,2356.6,2355.8,3.55]
[1725972856465,0.88824261,2356.6,2355.8,3.55]
[1725972856816,1.6912295,2356.6,2355.8,3.55]
[1725972857779,1.6912295,2356.6,2355.8,0.55]
[1725972858074,8.51790852,2356.5,2355.8,0.55]
[1725972858360,2.89559611,2356.4,2355.8,0.55]
[1725972858534,0.98528299,2356.3,2355.8,0.55]
[1725972858938,0.80319194,2356.2,2355.8,0.55]
[1725972859165,1.69143455,2356.2,2355.8,0.55]
[1725972859471,0.88824261,2356.4,2355.7,2.4014]
[1725972859632,0.88824261,2356.5,2355.8,0.63488722]
[1725972859839,0.88824261,2356.5,2355.8,1.61668118]
[1725972860045,1.69148294,2356.6,2355.8,4.61668118]
[1725972860231,2.89644045,2356.5,2355.8,4.61668118]
[1725972860434,2.89644045,2356.5,2355.9,1.02595936]
[1725972860435,0.88824261,2356.5,2355.9,1.02595936]
[1725972860644,0.88824261,2356.5,2356.0,0.55]
[1725972861330,1.69169659,2356.5,2356.0,0.55]
[1725972861531,0.80345398,2356.4,2356.0,0.55]
[1725972861756,0.88824261,2356.5,2356.0,0.55]
[1725972862029,0.88824261,2356.4,2356.0,0.55]
[1725972862233,1.91405674,2356.4,2356.0,0.55]
[1725972862557,1.91405674,2356.4,2355.7,2.4014]
[1725972862558,2.89725484,2356.3,2355.9,0.55]
[1725972862759,0.88824261,2356.3,2355.8,0.55]
[1725972862936,0.88824261,2356.4,2355.8,0.9290411]
[1725972863643,0.88824261,2356.3,2355.8,0.9290411]
[1725972865167,2.09447847,2356.3,2355.8,0.844154]
[1725972865489,2.89813295,2356.2,2355.8,0.55]
[1725972865670,0.80365448,2356.1,2355.8,0.55]
[1725972865842,0.88824261,2356.1,2355.8,0.55]
[1725972866191,1.69189709,2356.1,2355.8,0.93852475]
[1725972866395,0.88824261,2356.3,2355.8,0.85362953]
[1725972866539,0.88824261,2356.2,2355.8,0.55]
[1725972866885,1.69266855,2356.2,2355.8,0.55]
[1725972867058,2.89930746,2356.2,2355.8,0.55]
[1725972868467,2.89930746,2356.1,2355.8,0.55]
[1725972869255,0.88824261,2356.1,2355.8,0.55]
[1725972869453,0.80463944,2356.1,2355.8,0.55]
[1725972869807,1.48939434,2356.2,2355.8,0.55]
[1725972869938,0.80462538,2356.1,2355.8,0.55]
[1725972870987,0.88824261,2356.2,2355.8,0.55]
[1725972871179,0.80468387,2356.1,2355.8,0.55]
[1725972871489,0.88824261,2356.2,2355.8,0.55]
[1725972871776,1.69300401,2356.1,2355.8,0.55]
[1725972872139,2.90014611,2356.1,2355.8,0.55]
[1725972872585,1.69300401,2356.0,2355.8,0.55]
[1725972872886,1.19946359,2356.1,2355.8,0.55]
[1725972873088,0.80487225,2356.0,2355.8,0.55]
[1725972873490,1.69311486,2356.0,2355.8,0.55]
[1725972874092,0.88824261,2356.0,2355.8,0.55]
[1725972874695,0.88824261,2356.0,2355.8,0.6348923]
[1725972874897,0.88824261,2356.0,2355.9,2.4402]
[1725972875061,0.88824261,2356.0,2355.9,3.92186047]
[1725972875267,0.88824261,2356.0,2355.9,6.92186047]
[1725972875493,0.80188442,2356.0,2355.9,12.24825506]
[1725972875693,1.77728845,2356.3,2356.2,4.2737]
[1725972875694,0.8050938,2356.3,2356.2,4.2737]
[1725972875890,0.8050938,2356.3,2356.2,11.06521241]
[1725972876724,1.33492135,2356.5,2356.3,2.4087]
[1725972876879,1.33492135,2356.5,2356.4,0.55]
[1725972877076,1.33492135,2356.5,2356.4,5.02502124]
[1725972879826,1.33492135,2356.5,2356.4,8.26653365]
[1725972880000,1.33492135,2356.5,2356.4,10.65109688]
[1725972882781,1.33492135,2356.5,2356.4,10.56623365]
[1725972886054,9.6886,2357.3,2356.4,10.56623365]
[1725972886055,0.8883276,2357.2,2356.5,2.3514]
[1725972886270,0.8883276,2357.2,2356.6,5.16812862]
[1725972886473,0.8883276,2357.2,2356.7,3.0]
[1725972886764,0.8883276,2357.3,2356.8,0.55]
[1725972887060,1.66273099,2357.3,2356.8,0.63485287]
[1725972887267,1.66273099,2357.3,2356.8,0.55]
[1725972887414,1.66273099,2357.3,2356.8,0.63485287]
[1725972887621,1.66273099,2357.3,2356.8,1.45166501]
[1725972888614,0.77440339,2357.2,2356.8,1.45166501]
[1725972888817,0.8883276,2357.3,2356.8,1.45166501]
[1725972889017,0.8883276,2357.2,2356.8,0.55]
[1725972889331,0.8883276,2357.2,2356.7,0.55]
[1725972889644,0.8883276,2357.2,2356.7,1.34014]
[1725972890013,0.8883276,2357.1,2356.7,1.34014]
[1725972890323,2.2708,2357.2,2356.7,1.34014]
[1725972890324,3.1591276,2357.2,2356.7,1.34014]
[1725972890541,0.77386857,2357.1,2356.7,1.34014]
[1725972890731,3.1591276,2357.2,2356.7,1.34014]
[1725972892662,0.8883276,2357.3,2356.7,1.34014]
[1725972892872,2.82273053,2357.3,2356.7,1.34014]
[1725972893057,0.77376041,2357.2,2356.8,0.434014]
[1725972893260,0.8883276,2357.3,2356.9,0.55]
[1725972893457,2.82265726,2357.3,2356.9,0.55]
[1725972893778,0.77375163,2357.2,2356.9,0.55]
[1725972893974,0.8883276,2357.3,2356.9,0.55]
[1725972894218,0.8883276,2357.2,2356.9,0.55]
[1725972894532,0.8883276,2357.2,2356.6,3.0]
[1725972894865,0.8883276,2357.1,2356.7,0.55]
[1725972895067,2.10859822,2357.2,2356.6,3.55]
[1725972895068,2.82252666,2357.0,2356.6,3.55]
[1725972895270,0.8883276,2357.1,2356.6,3.55]
[1725972899003,0.8883276,2356.9,2356.6,0.55]
[1725972899311,2.82234646,2356.9,2356.6,0.55]
[1725972899479,3.2914276,2357.0,2356.6,0.55]
[1725972899812,0.77359351,2356.9,2356.6,0.55]
[1725972900667,0.8883276,2357.1,2356.6,2.8742]
[1725972900868,0.8883276,2357.1,2356.7,0.28742]
[1725972901062,1.66186192,2357.1,2356.8,0.55]
[1725972901370,0.77353432,2357.0,2356.8,0.55]
[1725972901568,0.8883276,2357.1,2356.7,0.55]
[1725972901794,2.82220537,2357.0,2356.7,0.55]
[1725972901997,0.8883276,2357.0,2356.7,0.55]
[1725972902522,1.66188493,2357.0,2356.7,0.55]
[1725972902679,0.8883276,2357.0,2356.7,0.55]
[1725972902884,1.66190434,2357.0,2356.7,0.55]
[1725972903088,0.77357674,2356.9,2356.5,0.55]
[1725972903596,0.8883276,2357.0,2356.5,0.55]
[1725972904220,0.8883276,2356.9,2356.5,0.55]
[1725972904636,2.82264168,2356.9,2356.5,0.55]
[1725972904843,2.31056853,2356.9,2356.3,3.0]
[1725972904996,2.4122,2356.7,2355.9,2.2529]
[1725972905191,2.4122,2356.7,2355.7,2.2529]
[1725972905192,3.3005276,2356.4,2355.7,2.2529]
[1725972905633,0.77401414,2356.3,2355.7,2.2529]
[1725972905834,3.3005276,2356.4,2355.7,2.2529]
[1725972906039,2.82336699,2356.3,2355.7,2.48667943]
[1725972906335,3.3005276,2356.4,2355.7,2.48667943]
[1725972906545,2.82324655,2356.3,2355.7,2.48667943]
[1725972906712,0.8883276,2356.3,2355.7,2.48667943]
[1725972907036,2.82324243,2356.3,2355.7,2.48667943]
[1725972907245,1.35187249,2356.3,2355.6,3.0]
[1725972907397,0.8883276,2356.3,2355.7,0.0848942]
[1725972907593,3.3005276,2356.6,2355.8,2.2529]
[1725972907798,0.8883276,2356.6,2356.0,2.2529]
[1725972907998,0.8883276,2356.7,2356.1,0.08487619]
[1725972908303,2.82295812,2356.7,2356.1,0.94280505]
[1725972908501,0.77385958,2356.6,2356.2,0.55]
[1725972908843,0.8883276,2356.7,2356.2,0.55]
[1725972909059,2.82296615,2356.7,2356.2,0.55]
[1725972909342,0.8883276,2356.7,2356.3,0.44079289]
[1725972909514,0.8883276,2356.7,2356.4,0.55]
[1725972909515,2.8230695,2356.7,2356.4,0.55]
[1725972909698,0.77389682,2356.6,2356.4,0.55]
[1725972910047,0.8883276,2356.7,2356.4,0.55]
[1725972910247,0.8883276,2356.6,2356.4,0.55]
[1725972910448,0.8883276,2356.6,2356.1,3.85792886]
[1725972910449,0.8883276,2356.6,2356.2,0.55]
[1725972910603,0.8883276,2356.6,2356.2,1.21608289]
[1725972911949,4.35001735,2356.5,2355.9,7.48]
[1725972912118,2.82361047,2356.4,2355.8,2.4367]
[1725972912441,2.82360743,2356.3,2355.6,2.4377]
[1725972912744,0.8883276,2356.3,2355.7,0.52415124]
[1725972913243,0.8883276,2356.3,2355.6,2.4377]
[1725972913652,2.2731,2356.1,2355.4,9.9018]
[1725972913801,2.2731,2356.1,2355.4,2.4218]
[1725972914001,3.1614276,2356.1,2355.5,0.76633124]
[1725972914225,0.77420324,2356.0,2355.2,2.4689]
[1725972914429,1.66253084,2356.0,2355.2,2.4689]
[1725972914640,0.8883276,2355.9,2355.2,2.4689]
[1725972914929,2.4983,2355.7,2355.2,1.20681607]
[1725972915719,2.4983,2355.7,2355.0,4.5881607]
[1725972915720,5.73981241,2355.7,2355.0,0.1192607]
[1725972915916,6.62814001,2355.7,2355.0,0.1192607]
[1725972916121,5.73981241,2355.7,2355.0,0.1192607]
[1725972916347,6.53611855,2355.7,2355.0,0.1192607]
[1725972916648,0.77370192,2355.6,2355.0,0.1192607]
[1725972916867,2.82257645,2355.6,2355.0,0.1192607]
[1725972917088,0.77370192,2355.5,2355.0,0.1192607]
[1725972917250,0.8883276,2355.6,2355.0,0.1192607]
[1725972917573,0.87593675,2355.5,2355.0,0.1192607]
[1725972917759,2.289,2355.4,2355.0,0.1192607]
[1725972919851,2.4055,2355.6,2355.1,0.55]
[1725972920047,0.8883276,2355.8,2355.1,0.85678607]
[1725972920048,3.2938276,2355.8,2355.1,0.85678607]
[1725972920659,2.4055,2355.8,2355.1,0.85678607]
[1725972920985,8.2883276,2355.9,2355.2,0.0849119]
[1725972921159,8.2883276,2355.9,2355.3,0.55]
[1725972921160,7.4,2355.9,2355.3,0.55]
[1725972922167,7.4,2355.9,2355.4,2.48460604]
[1725972922373,7.4,2355.9,2355.5,0.55]
[1725972922575,0.8883276,2356.3,2355.6,0.38835693]
[1725972922860,10.7691276,2356.4,2355.7,0.55]
[1725972923106,5.21468408,2356.4,2355.7,0.55]
[1725972923281,2.4808,2356.4,2355.7,0.55]
[1725972923433,3.3691276,2356.4,2355.7,0.55]
[1725972923840,0.77184239,2356.3,2355.7,0.55]
[1725972924380,3.3691276,2356.4,2355.7,0.55]
[1725972924590,0.7718785,2356.3,2355.7,0.55]
[1725972924754,0.7718785,2356.3,2355.7,0.93534606]
[1725972926180,0.8883276,2356.4,2355.7,1.02023587]
[1725972926350,3.1561276,2356.6,2355.8,2.3977]
[1725972926554,3.1561276,2356.6,2355.9,0.89179359]
[1725972926555,0.77181751,2356.5,2355.9,0.89179359]
[1725972926796,3.1561276,2356.6,2355.9,0.89179359]
[1725972926967,0.77179378,2356.5,2355.9,0.89179359]
[1725972928193,2.8179584,2356.5,2355.9,0.89179359]
[1725972928392,2.2678,2356.6,2355.9,0.89179359]
[1725972928393,3.1561276,2356.6,2355.9,0.89179359]
[1725972928594,1.66021603,2356.5,2355.9,0.89179359]
[1725972929098,2.2678,2356.6,2355.9,0.89179359]
[1725972929099,3.1561276,2356.6,2356.0,0.32894936]
[1725972929392,2.81819152,2356.5,2356.0,0.32894936]
[1725972929594,0.8883276,2356.5,2356.0,0.32894936]
[1725972929755,0.77199438,2356.5,2356.0,0.32894936]
[1725972929955,0.8883276,2356.7,2356.1,0.55]
[1725972930158,2.81814234,2356.7,2356.1,0.55]
[1725972930396,0.77192608,2356.6,2356.1,0.55]
[1725972930595,0.8883276,2356.7,2356.1,0.55]
[1725972930801,2.8183755,2356.7,2356.1,0.55]
[1725972931105,0.8883276,2356.7,2356.1,0.55]
[1725972931263,2.81849952,2356.7,2356.1,0.55]
[1725972931599,0.77206824,2356.6,2356.1,0.55]
[1725972931910,0.8883276,2356.7,2356.1,0.6348753]
[1725972932117,2.81855538,2356.7,2356.1,0.55]
[1725972932313,0.77209117,2356.6,2356.1,0.55]
[1725972932616,0.8883276,2356.7,2356.1,0.55]
[1725972932914,2.81891035,2356.7,2356.1,0.55]
[1725972933126,0.77223319,2356.6,2356.1,0.55]
[1725972933411,0.8883276,2356.7,2356.1,0.55]
[1725972933620,0.8883276,2356.6,2356.1,0.55]
[1725972933813,2.0467756,2356.6,2356.1,0.55]
[1725972934116,0.8883276,2356.6,2356.1,0.55]
[1725972935124,2.81944369,2356.6,2356.1,0.55]
[1725972935276,0.8883276,2356.6,2356.1,0.55]
[1725972935664,1.6608302,2356.6,2356.1,0.55]
[1725972937114,0.8883276,2356.6,2356.1,0.55]
[1725972937686,2.4984,2356.8,2356.1,0.55]
[1725972938190,2.4984,2356.8,2356.1,0.63487528]
[1725972938823,2.4984,2356.8,2356.1,0.55]
[1725972939117,0.88708292,2356.6,2356.1,0.55]
[1725972940402,0.88708292,2356.5,2356.1,0.55]
[1725972940944,0.88708292,2356.6,2356.2,2.3863]
[1725972941147,0.88708292,2356.8,2356.3,0.92849934]
[1725972941299,2.82606695,2356.8,2356.4,2.3071]
[1725972941631,0.88708292,2357.0,2356.5,0.87355993]
[1725972941940,1.77416585,2357.2,2356.6,2.4484]
[1725972941941,2.2177073,2357.2,2356.6,2.4484]
[1725972942239,0.88708292,2357.2,2356.8,2.4484]
[1725972942552,0.88708292,2357.4,2356.9,0.858325]
[1725972944899,0.88708292,2357.4,2356.9,0.55]
[1725972945429,0.88708292,2357.5,2357.1,2.3599]
[1725972945741,0.88708292,2357.6,2357.2,0.55]
[1725972945908,0.88708292,2357.7,2357.2,0.79447499]
[1725972946112,0.88708292,2357.8,2357.3,0.40027802]
[1725972946350,1.33062438,2357.9,2357.4,2.8865]
[1725972946351,0.88708292,2357.9,2357.4,2.8865]
[1725972946643,8.28708292,2358.0,2357.4,3.23863405]
[1725972946844,0.88708292,2358.0,2357.4,3.23863405]
[1725972948228,2.82234262,2358.0,2357.4,3.23863405]